lending/lending_fUSD_20250719
["ID","MTS","AMOUNT","RATE_DAILY","PERIOD"]
[373283353,1752927112506,-1618.6,0.00026027,2]
[373283354,1752927112516,-1618.61459639,0.00026027,2]
[373283355,1752927112527,-3635.0,0.00026027,2]
[373283356,1752927112536,-1089.0,0.00026027,2]
[373283357,1752927112546,-1304.0,0.00026027,2]
[373283358,1752927112556,-444.0,0.00026027,2]
[373283359,1752927112565,-500.0,0.00026028,2]
[373283360,1752927112574,-200.0,0.000261,7]
[373283361,1752927112584,-152.0,0.00026101,12]
[373283362,1752927112597,-300.0,0.00026106,2]
[373283363,1752927112607,-1000.0,0.00026122,2]
[373283364,1752927112617,-164.75,0.00026129,2]
[373283365,1752927112627,-715.65,0.00026188,120]
[373283366,1752927112637,-5463.33,0.000263,7]
[373283367,1752927112647,-3635.0,0.00026301,2]
[373283368,1752927112656,-1089.0,0.00026301,2]
[373283369,1752927112668,-444.0,0.00026301,2]
[373283370,1752927112677,-500.0,0.00026302,2]
[373283371,1752927112687,-479.10385899,0.00026312,2]
[373283372,1752927112696,-26760.24621756,0.000264,2]
[373283373,1752927112706,-226.0,0.0002643,2]
[373283374,1752927112715,-46622.73332846,0.000265,2]
[373283375,1752927112724,-643.49157141,0.00026519,10]
[373283376,1752927112733,-600.0,0.00026529,2]
[373283377,1752927112743,-152.0,0.00026534,13]
[373283378,1752927112754,-3635.0,0.00026575,2]
[373283379,1752927112764,-1089.0,0.00026575,2]
[373283380,1752927112773,-444.0,0.00026575,2]
[373283381,1752927112783,-181.07036049,0.00026576,2]
[373283382,1752927112792,-500.0,0.00026644,2]
[373283383,1752927112801,-900.0,0.00026644,2]
[373283384,1752927112811,-1000.0,0.00026644,2]
[373283385,1752927112821,-196.58,0.00026676,2]
[373283386,1752927112830,-2000.0,0.00026748,10]
[373283387,1752927112840,-300.0,0.00026764,27]
[373283388,1752927112849,-2000.0,0.00026784,30]
[373283389,1752927112858,-1000.0,0.000268,7]
[373283390,1752927112868,-3644.13469166,0.00026849,2]
[373283391,1752927112877,-1109.98221467,0.00026849,2]
[373283392,1752927112887,-463.31416232,0.00026849,2]
[373283393,1752927112896,-152.0,0.00026967,14]
[373283394,1752927112906,-1007.26429181,0.00027,2]
[373283395,1752927112916,-1910.72202104,0.00027,14]
[373283396,1752927112925,-900.0,0.00027,28]
[373283397,1752927112935,-25164.96302823,0.00027,30]
[373283398,1752927112944,-580.83,0.00027,7]
[373283399,1752927112954,-2803.01,0.00027,7]
[373283400,1752927112964,-261.27,0.00027,7]
[373283401,1752927112977,-2480.44,0.00027,7]
[373283402,1752927112986,-192.77,0.00027,7]
[373283403,1752927112996,-34335.35,0.00027,7]
[373283404,1752927113006,-239893.97,0.00027,7]
[373283405,1752927113016,-2000.0,0.00027,2]
[373283406,1752927113026,-266.84068,0.00027,7]
[373283407,1752927113035,-151.0,0.00027,7]
[373283408,1752927113045,-328.82,0.00027,31]
[373283409,1752927113054,-328.82,0.00027,31]
[373283410,1752927113064,-328.82,0.00027,31]
[373283411,1752927113073,-328.82,0.00027,31]
[373283412,1752927113083,-328.82,0.00027,31]
[373283413,1752927113092,-328.82,0.00027,31]
[373283414,1752927113102,-328.82,0.00027,31]
[373283415,1752927113111,-328.82,0.00027,31]
[373283416,1752927113122,-328.82,0.00027,31]
[373283417,1752927113132,-328.82,0.00027,31]
[373283418,1752927113142,-328.82,0.00027,31]
[373283419,1752927113152,-328.82,0.00027,31]
[373283420,1752927113161,-328.82,0.00027,31]
[373283421,1752927113172,-328.82,0.00027,31]
[373283422,1752927113182,-328.82,0.00027,31]
[373283423,1752927113191,-328.82,0.00027,31]
[373283424,1752927113202,-328.82,0.00027,31]
[373283425,1752927113212,-328.82,0.00027,31]
[373283426,1752927113221,-328.82,0.00027,31]
[373283427,1752927113230,-328.82,0.00027,31]
[373283428,1752927113240,-328.82,0.00027,31]
[373283429,1752927113250,-328.82,0.00027,31]
[373283430,1752927113260,-328.82,0.00027,31]
[373283431,1752927113269,-328.82,0.00027,31]
[373283432,1752927113278,-500.0,0.00027005,2]
[373283433,1752927113288,-2128.832442,0.0002701,2]
[373283434,1752927113297,-494.0,0.00027064,7]
[373283435,1752927113307,-600.0,0.00027077,2]
[373283436,1752927113317,-200.0,0.000271,7]
[373283437,1752927113326,-3586.04,0.00027123,2]
[373283438,1752927113336,-160.33275802,0.00027124,7]
[373283439,1752927113345,-496.0,0.00027185,7]
[373283440,1752927113354,-501.0,0.00027185,7]
[373283441,1752927113364,-528.58075775,0.000272,2]
[373283442,1752927113374,-62059.38303774,0.00027268,7]
[373283443,1752927113383,-5463.33,0.000273,7]
[373283444,1752927113393,-239893.97,0.000273,7]
[373283445,1752927113403,-479.10385899,0.00027346,2]
[373283446,1752927113413,-248.71531821,0.00027346,2]
[373283447,1752927113422,-12176.43,0.0002737,2]
[373283448,1752927113432,-120611.0330419,0.00027378,2]
[373283449,1752927113441,-4000.59030894,0.0002739,2]
[373283450,1752927113451,-10292.89286697,0.0002739,2]
[373283451,1752927113460,-78662.32369119,0.0002739,2]
[373283452,1752927113470,-4257.86582778,0.0002739,7]
[373283453,1752927113480,-1982.49,0.00027397,60]
[373283454,1752927113489,-500.0,0.00027397,15]
[373283455,1752927113560,-500.0,0.00027397,15]
[373283456,1752927113570,-501.71896671,0.00027397,15]
[373283457,1752927113580,-500.0,0.00027397,10]
[373283458,1752927113592,-500.0,0.00027397,10]
[373283459,1752927113603,-500.0,0.00027397,10]
[373283460,1752927113612,-500.0,0.00027397,10]
[373283461,1752927113621,-500.0,0.00027397,10]
[373283462,1752927113631,-500.0,0.00027397,10]
[373283463,1752927113642,-500.0,0.00027397,10]
[373283464,1752927113651,-500.0,0.00027397,10]
[373283465,1752927113661,-500.0,0.00027397,10]
[373283466,1752927113673,-233.61443729,0.00027397,10]
[373283467,1752927113684,-2000.0,0.00027397,30]
[373283468,1752927113694,-2000.0,0.00027397,30]
[373283469,1752927113703,-2000.0,0.00027397,30]
[373283470,1752927113713,-2000.0,0.00027397,30]
[373283471,1752927113723,-2000.0,0.00027397,30]
[373283472,1752927113733,-2000.0,0.00027397,30]
[373283473,1752927113742,-2000.0,0.00027397,30]
[373283474,1752927113753,-326.52974097,0.00027397,30]
[373283475,1752927113762,-1235.43,0.00027397,2]
[373283476,1752927113771,-1235.43,0.00027397,2]
[373283477,1752927113781,-1235.43,0.00027397,2]
[373283478,1752927113790,-1235.43,0.00027397,2]
[373283479,1752927113800,-1235.43,0.00027397,2]
[373283480,1752927113809,-1235.43,0.00027397,2]
[373283481,1752927113818,-1235.43,0.00027397,2]
[373283482,1752927113827,-1235.43,0.00027397,2]
[373283483,1752927113837,-1235.43,0.00027397,2]
[373283484,1752927113848,-1235.43,0.00027397,2]
[373283485,1752927113858,-1235.43,0.00027397,2]
[373283486,1752927113867,-1235.43,0.00027397,2]
[373283487,1752927113877,-1235.43,0.00027397,2]
[373283488,1752927113887,-1235.43,0.00027397,2]
[373283489,1752927113897,-1235.43,0.00027397,2]
[373283490,1752927113906,-1235.43,0.00027397,2]
[373283491,1752927113916,-1235.43,0.00027397,2]
[373283492,1752927113925,-1235.43,0.00027397,2]
[373283493,1752927113934,-1235.43,0.00027397,2]
[373283494,1752927113943,-1235.43,0.00027397,2]
[373283495,1752927113952,-1235.43,0.00027397,2]
[373283496,1752927113962,-1235.43,0.00027397,2]
[373283497,1752927113971,-1235.43,0.00027397,2]
[373283498,1752927113980,-1235.57,0.00027397,2]
[373283499,1752927113991,-504.79,0.00027397,2]
[373283500,1752927114000,-700.0,0.00027397,2]
[373283501,1752927114010,-300.0,0.00027397,2]
[373283502,1752927114019,-595.05,0.00027397,80]
[373283503,1752927114028,-194.51674576,0.00027397,2]
[373283504,1752927114038,-154.97915083,0.00027397,5]
[373283505,1752927114047,-1304.0,0.00027397,2]
[373283506,1752927114056,-2000.0,0.000274,2]
[373283507,1752927114065,-170.44868351,0.000274,2]
[373283508,1752927114074,-170.44868351,0.000274,2]
[373283509,1752927114084,-170.44868351,0.000274,2]
[373283510,1752927114094,-152.0,0.00027401,15]
[373283511,1752927114103,-2239.0945362,0.00027406,2]
[373283512,1752927114114,-5162.7,0.00027425,30]
[373283513,1752927114123,-195.64996332,0.000275,2]
[373283514,1752927114132,-534.38596293,0.000275,2]
[373283515,1752927114142,-301.0,0.0002751,7]
[373283516,1752927114151,-205.86,0.00027561,2]
[373283517,1752927114161,-600.0,0.00027625,2]
[373283518,1752927114171,-500.0,0.000277,15]
[373283519,1752927114181,-221.0,0.000277,3]
[373283520,1752927114190,-3345.26,0.00027734,8]
[373283521,1752927114199,-391.0,0.0002783,15]
[373283522,1752927114208,-4074.0,0.00027831,2]
[373283523,1752927114218,-152.0,0.00027834,16]
[373283524,1752927114228,-447.82268082,0.00027834,9]
[373283525,1752927114237,-1000.0,0.000279,30]
[373283526,1752927114246,-175238.48289046,0.000279,3]
[373283527,1752927114255,-239893.97,0.000279,7]
[373283528,1752927114264,-2000.0,0.00027987,30]
[373283529,1752927114273,-279.39,0.00028,2]
[373283530,1752927114283,-160.0,0.00028,10]
[373283531,1752927114292,-4140.0,0.00028,2]
[373283532,1752927114301,-239893.97,0.00028,7]
[373283533,1752927114309,-461.59670831,0.00028,2]
[373283534,1752927114320,-12684.23681671,0.00028,2]
[373283535,1752927114329,-253.68473633,0.00028,2]
[373283536,1752927114339,-476.80070012,0.00028,3]
[373283537,1752927114348,-210.82967408,0.00028,3]
[373283538,1752927114357,-839.16344753,0.00028,3]
[373283539,1752927114367,-1587.811898,0.00028,2]
[373283540,1752927114377,-2000.0,0.00028,28]
[373283541,1752927114386,-900.0,0.00028,29]
[373283542,1752927114395,-150.0,0.00028,2]
[373283543,1752927114405,-29004.20008408,0.00028,5]
[373283544,1752927114414,-580.83,0.00028,7]
[373283545,1752927114424,-2803.01,0.00028,7]
[373283546,1752927114433,-236.0,0.00028,3]
[373283547,1752927114443,-261.27,0.00028,7]
[373283548,1752927114452,-2480.44,0.00028,7]
[373283549,1752927114461,-192.77,0.00028,7]
[373283550,1752927114471,-34335.35,0.00028,7]
[373283551,1752927114480,-1504.33,0.00028,2]
[373283552,1752927114490,-4000.0,0.00028,4]
[373283553,1752927114500,-1000.0,0.00028152,5]
[373283554,1752927114510,-600.0,0.00028173,2]
[373283555,1752927114519,-152.0,0.00028267,17]
[373283556,1752927114529,-496.0,0.00028272,14]
[373283557,1752927114538,-1216.90080672,0.00028286,2]
[373283558,1752927114547,-228.64653745,0.00028291,2]
[373283559,1752927114556,-16141.62354595,0.00028293,2]
[373283560,1752927114566,-5463.33,0.000283,7]
[373283561,1752927114576,-401584.07097904,0.00028313,5]
[373283562,1752927114587,-479.10385899,0.00028379,2]
[373283563,1752927114599,-643.49157141,0.00028379,16]
[373283564,1752927114609,-496.0,0.00028479,14]
[373283565,1752927114618,-1500.0,0.000285,2]
[373283566,1752927114628,-897.60227261,0.00028683,4]
[373283567,1752927114639,-681.03416829,0.00028683,4]
[373283568,1752927114649,-1122.3846211,0.00028683,4]
[373283569,1752927114659,-296082.02012016,0.000287,2]
[373283570,1752927114668,-152.0,0.000287,18]
[373283571,1752927114678,-257.91778498,0.00028715,2]
[373283572,1752927114688,-494.0,0.00028756,14]
[373283573,1752927114698,-1304.0,0.00028767,2]
[373283574,1752927114707,-154.0,0.000288,120]
[373283575,1752927114717,-500.0,0.00028836,7]
[373283576,1752927114728,-900.0,0.00028836,7]
[373283577,1752927114737,-1000.0,0.00028836,7]
[373283578,1752927114746,-504.0,0.00028852,2]
[373283579,1752927114755,-500.0,0.000289,5]
[373283580,1752927114766,-97384.274581,0.0002898,2]
[373283581,1752927114775,-2694.1826997,0.0002898,2]
[373283582,1752927114784,-215.0,0.0002898,3]
[373283583,1752927114794,-494.0,0.00028997,14]
[373283584,1752927114804,-70629.97782566,0.00029,2]
[373283585,1752927114814,-50768.47443928,0.00029,2]
[373283586,1752927114823,-900.0,0.00029,30]
[373283587,1752927114833,-5003.0,0.00029,2]
[373283588,1752927114842,-348561.27184969,0.00029,7]
[373283589,1752927114852,-1494.68083215,0.00029,2]
[373283590,1752927114862,-580.83,0.00029,7]
[373283591,1752927114871,-2803.01,0.00029,7]
[373283592,1752927114881,-51410.87543,0.00029,30]
[373283593,1752927114890,-48588.54546,0.00029,14]
[373283594,1752927114901,-161.25,0.00029,2]
[373283595,1752927114910,-261.27,0.00029,7]
[373283596,1752927114919,-160.85,0.00029,6]
[373283597,1752927114928,-2480.44,0.00029,7]
[373283598,1752927114938,-192.77,0.00029,7]
[373283599,1752927114947,-34335.35,0.00029,7]
[373283600,1752927114956,-239893.97,0.00029,7]
[373283601,1752927114965,-1500.0,0.00029,2]
[373283602,1752927114975,-897.60227261,0.00029037,4]
[373283603,1752927114984,-681.03416829,0.00029037,4]
[373283604,1752927114993,-1122.3846211,0.00029037,4]
[373283605,1752927115003,-983.75910081,0.00029041,120]
[373283606,1752927115012,-5000.0,0.00029085,2]
[373283607,1752927115022,-200.0,0.000291,7]
[373283608,1752927115031,-200.0,0.000291,7]
[373283609,1752927115042,-152.0,0.00029134,19]
[373283610,1752927115051,-328.82,0.000292,31]
[373283611,1752927115061,-328.82,0.000292,31]
[373283612,1752927115070,-328.82,0.000292,31]
[373283613,1752927115080,-328.82,0.000292,31]
[373283614,1752927115089,-328.82,0.000292,31]
[373283615,1752927115098,-328.82,0.000292,31]
[373283616,1752927115108,-328.82,0.000292,31]
[373283617,1752927115117,-328.82,0.000292,31]
[373283618,1752927115127,-328.82,0.000292,31]
[373283619,1752927115137,-328.82,0.000292,31]
[373283620,1752927115147,-328.82,0.000292,31]
[373283621,1752927115156,-328.82,0.000292,31]
[373283622,1752927115166,-328.82,0.000292,31]
[373283623,1752927115175,-328.82,0.000292,31]
[373283624,1752927115185,-328.82,0.000292,31]
[373283625,1752927115195,-328.82,0.000292,31]
[373283626,1752927115204,-328.82,0.000292,31]
[373283627,1752927115214,-328.82,0.000292,31]
[373283628,1752927115224,-328.82,0.000292,31]
[373283629,1752927115233,-328.82,0.000292,31]
[373283630,1752927115244,-328.82,0.000292,31]
[373283631,1752927115254,-328.82,0.000292,31]
[373283632,1752927115265,-328.82,0.000292,31]
[373283633,1752927115274,-328.82,0.000292,31]
[373283634,1752927115284,-2000.0,0.00029234,30]
[373283635,1752927115294,-62059.38303774,0.00029268,7]
[373283636,1752927115303,-5463.33,0.000293,7]
[373283637,1752927115313,-496.0,0.0002936,14]
[373283638,1752927115322,-897.60227261,0.00029392,4]
[373283639,1752927115332,-681.03416829,0.00029392,4]
[373283640,1752927115343,-1122.3846211,0.00029392,4]
[373283641,1752927115353,-1500.0,0.000295,2]
[373283642,1752927115363,-205.86,0.00029529,2]
[373283643,1752927115372,-152.0,0.00029567,20]
[373283644,1752927115381,-8279.06,0.000297,2]
[373283645,1752927115391,-897.60227261,0.00029746,4]
[373283646,1752927115400,-681.03416829,0.00029746,4]
[373283647,1752927115409,-1122.3846211,0.00029746,4]
[373283648,1752927115419,-496.0,0.00029774,14]
[373283649,1752927115428,-6573.55008741,0.00029819,2]
[373283650,1752927115438,-6573.55008739,0.00029819,2]
[373283651,1752927115447,-6573.55008739,0.00029819,2]
[373283652,1752927115457,-472.257578,0.0002988,120]
[373283653,1752927115467,-76634.91768476,0.000299,2]
[373283654,1752927115476,-8763.8015975,0.000299,30]
[373283655,1752927115485,-504.0,0.00029926,4]
[373283656,1752927115494,-2081.82157771,0.0002998,2]
[373283657,1752927115504,-231.26709754,0.0002999,2]
[373283658,1752927115513,-160.0,0.0003,30]
[373283659,1752927115522,-250.02085355,0.0003,2]
[373283660,1752927115531,-161.5850875,0.0003,2]
[373283661,1752927115541,-532.10681459,0.0003,30]
[373283662,1752927115549,-700.0,0.0003,15]
[373283663,1752927115558,-4600.0,0.0003,10]
[373283664,1752927115567,-18840.1517717,0.0003,2]
[373283665,1752927115577,-14883.6726863,0.0003,2]
[373283666,1752927115587,-200.0,0.0003,40]
[373283667,1752927115600,-1769.04402341,0.0003,2]
[373283668,1752927115610,-500.0,0.0003,30]
[373283669,1752927115621,-900.0,0.0003,31]
[373283670,1752927115630,-150.0,0.0003,30]
[373283671,1752927115641,-1000.0,0.0003,12]
[373283672,1752927115652,-21405.60389903,0.0003,14]
[373283673,1752927115664,-6000.0,0.0003,60]
[373283674,1752927115674,-1255.86244032,0.0003,10]
[373283675,1752927115683,-4721.95312576,0.0003,2]
[373283676,1752927115693,-1000.0,0.0003,2]
[373283677,1752927115702,-33700.0,0.0003,30]
[373283678,1752927115712,-1351.19803243,0.0003,20]
[373283679,1752927115721,-728.0,0.0003,2]
[373283680,1752927115731,-183.31539343,0.0003,2]
[373283681,1752927115741,-14242.9074765,0.0003,5]
[373283682,1752927115751,-1571.24690692,0.0003,120]
[373283683,1752927115761,-500.0,0.0003,120]
[373283684,1752927115770,-3139.92409213,0.0003,120]
[373283685,1752927115779,-1000.0,0.0003,120]
[373283686,1752927115789,-24300.0,0.0003,2]
[373283687,1752927115798,-200.0,0.0003,120]
[373283688,1752927115807,-1000.0,0.0003,120]
[373283689,1752927115817,-66704.61700949,0.0003,120]
[373283690,1752927115826,-5170.829,0.0003,120]
[373283691,1752927115836,-1002.26572649,0.0003,120]
[373283692,1752927115845,-156101.12893057,0.0003,5]
[373283693,1752927115854,-152.0,0.0003,21]
[373283694,1752927115864,-195.35920605,0.0003,5]
[373283695,1752927115873,-215.0,0.0003,2]
[373283696,1752927115882,-1500.0,0.0003,2]
[373283697,1752927115892,-4000.0,0.0003,4]
[373283698,1752927115902,-6966.90872146,0.0003001,2]
[373283699,1752927115911,-267.46074303,0.00030084,2]
[373283700,1752927115921,-897.60227261,0.000301,4]
[373283701,1752927115930,-681.03416829,0.000301,4]
[373283702,1752927115940,-1122.3846211,0.000301,4]
[373283703,1752927115950,-200.0,0.000301,7]
[373283704,1752927115960,-2000.0,0.000301,2]
[373283705,1752927115969,-196.35565335,0.0003013,2]
[373283706,1752927115979,-3200.0,0.0003013,2]
[373283707,1752927115988,-200.07076079,0.0003013,2]
[373283708,1752927115999,-9999.999999,0.0003013,2]
[373283709,1752927116009,-150.0,0.00030136,2]
[373283710,1752927116019,-1099.99999902,0.00030136,120]
[373283711,1752927116029,-750.80551764,0.00030137,30]
[373283712,1752927116038,-1385.74321833,0.00030137,90]
[373283713,1752927116048,-5334.45,0.00030137,7]
[373283714,1752927116057,-1000.0,0.00030137,10]
[373283715,1752927116067,-1000.0,0.00030137,10]
[373283716,1752927116076,-1000.0,0.00030137,10]
[373283717,1752927116085,-1000.0,0.00030137,10]
[373283718,1752927116095,-1000.0,0.00030137,10]
[373283719,1752927116104,-1000.0,0.00030137,10]
[373283720,1752927116114,-1000.0,0.00030137,10]
[373283721,1752927116123,-1000.0,0.00030137,10]
[373283722,1752927116133,-769.0,0.00030137,10]
[373283723,1752927116142,-1000.0,0.00030137,10]
[373283724,1752927116151,-1000.0,0.00030137,10]
[373283725,1752927116162,-1000.0,0.00030137,10]
[373283726,1752927116171,-1000.0,0.00030137,10]
[373283727,1752927116180,-1000.0,0.00030137,10]
[373283728,1752927116189,-1000.0,0.00030137,10]
[373283729,1752927116198,-1000.0,0.00030137,10]
[373283730,1752927116207,-1000.0,0.00030137,10]
[373283731,1752927116217,-1000.0,0.00030137,10]
[373283732,1752927116227,-1000.0,0.00030137,10]
[373283733,1752927116236,-1000.0,0.00030137,10]
[373283734,1752927116246,-1000.0,0.00030137,10]
[373283735,1752927116255,-1000.0,0.00030137,10]
[373283736,1752927116264,-1000.0,0.00030137,10]
[373283737,1752927116274,-1000.0,0.00030137,10]
[373283738,1752927116284,-1000.0,0.00030137,10]
[373283739,1752927116294,-1000.0,0.00030137,10]
[373283740,1752927116304,-1000.0,0.00030137,10]
[373283741,1752927116314,-1000.0,0.00030137,10]
[373283742,1752927116324,-1000.0,0.00030137,10]
[373283743,1752927116334,-1000.0,0.00030137,10]
[373283744,1752927116344,-1000.0,0.00030137,10]
[373283745,1752927116354,-1000.0,0.00030137,10]
[373283746,1752927116363,-1000.0,0.00030137,10]
[373283747,1752927116373,-1000.0,0.00030137,10]
[373283748,1752927116383,-1000.0,0.00030137,10]
[373283749,1752927116392,-1000.0,0.00030137,10]
[373283750,1752927116402,-1000.0,0.00030137,10]
[373283751,1752927116413,-1000.0,0.00030137,10]
[373283752,1752927116423,-1000.0,0.00030137,10]
[373283753,1752927116432,-1000.0,0.00030137,10]
[373283754,1752927116442,-150.38231331,0.00030137,5]
[373283755,1752927116452,-1743.41,0.00030137,7]
[373283756,1752927116462,-1304.0,0.00030137,2]
[373283757,1752927116472,-1000.0,0.00030153,7]
[373283758,1752927116482,-500.0,0.00030165,7]
[373283759,1752927116493,-900.0,0.00030178,7]
[373283760,1752927116509,-500.0,0.00030188,7]
[373283761,1752927116519,-1600.0,0.00030229,7]
[373283762,1752927116529,-2500.0,0.00030241,7]
[373283763,1752927116541,-2100.0,0.0003025,7]
[373283764,1752927116551,-210.0,0.0003026,3]
[373283765,1752927116561,-1000.0,0.0003027,5]
[373283766,1752927116571,-2100.0,0.00030288,7]
[373283767,1752927116581,-400.0,0.000303,15]
[373283768,1752927116594,-8564.14,0.000303,7]
[373283769,1752927116604,-600.0,0.00030334,7]
[373283770,1752927116625,-500.0,0.00030335,7]
[373283771,1752927116635,-800.0,0.00030337,7]
[373283772,1752927116645,-800.0,0.00030391,7]
[373283773,1752927116655,-2100.0,0.00030431,7]
[373283774,1752927116665,-2500.0,0.00030447,7]
[373283775,1752927116675,-494.0,0.00030447,14]
[373283776,1752927116685,-496.0,0.00030447,14]
[373283777,1752927116694,-2500.0,0.00030452,7]
[373283778,1752927116704,-897.60227261,0.00030454,4]
[373283779,1752927116714,-681.03416829,0.00030454,4]
[373283780,1752927116724,-1122.3846211,0.00030454,4]
[373283781,1752927116734,-3345.26,0.00030474,10]
[373283782,1752927116744,-2000.0,0.00030478,30]
[373283783,1752927116757,-500.0,0.0003048,7]
[373283784,1752927116767,-900.0,0.0003048,7]
[373283785,1752927116777,-1000.0,0.0003048,7]
[373283786,1752927116787,-272.84336909,0.00030536,7]
[373283787,1752927116797,-500.0,0.00030569,7]
[373283788,1752927116807,-153.0,0.000306,120]
[373283789,1752927116818,-548.0,0.00030613,30]
[373283790,1752927116827,-800.0,0.00030616,7]
[373283791,1752927116837,-600.0,0.0003063,7]
[373283792,1752927116847,-800.0,0.00030647,7]
[373283793,1752927116857,-800.0,0.00030663,7]
[373283794,1752927116868,-500.0,0.00030674,2]
[373283795,1752927116885,-1600.0,0.00030677,7]
[373283796,1752927116895,-182.09466589,0.00030685,2]
[373283797,1752927116905,-600.0,0.00030691,7]
[373283798,1752927116914,-500.0,0.00030692,7]
[373283799,1752927116924,-1000.0,0.00030708,7]
[373283800,1752927116933,-900.0,0.00030722,7]
[373283801,1752927116944,-900.0,0.00030748,7]
[373283802,1752927116954,-2616.0,0.00030754,30]
[373283803,1752927116964,-500.0,0.00030758,7]
[373283804,1752927116975,-900.0,0.00030765,7]
[373283805,1752927116985,-1000.0,0.00030776,7]
[373283806,1752927116997,-900.0,0.00030779,7]
[373283807,1752927117007,-1000.0,0.00030789,7]
[373283808,1752927117017,-1600.0,0.00030791,7]
[373283809,1752927117027,-250.0,0.000308,30]
[373283810,1752927117039,-1504.33,0.000308,2]
[373283811,1752927117049,-285.53764239,0.00030805,7]
[373283812,1752927117059,-500.0,0.00030807,7]
[373283813,1752927117069,-897.60227261,0.00030808,4]
[373283814,1752927117079,-681.03416829,0.00030808,4]
[373283815,1752927117090,-1122.3846211,0.00030808,4]
[373283816,1752927117100,-600.0,0.00030813,7]
[373283817,1752927117110,-595.05,0.00030822,80]
[373283818,1752927117120,-600.0,0.00030825,7]
[373283819,1752927117129,-800.0,0.00030855,7]
[373283820,1752927117139,-600.0,0.00030857,7]
[373283821,1752927117150,-500.0,0.00030859,7]
[373283822,1752927117161,-2100.0,0.00030868,7]
[373283823,1752927117171,-3000.0,0.0003088,120]
[373283824,1752927117180,-900.0,0.00030895,7]
[373283825,1752927117190,-900.0,0.00030896,7]
[373283826,1752927117200,-1000.0,0.0003093,7]
[373283827,1752927117209,-900.0,0.00030943,7]
[373283828,1752927117219,-900.0,0.00030953,7]
[373283829,1752927117228,-600.0,0.00030958,7]
[373283830,1752927117238,-74157.5161201,0.00030979,2]
[373283831,1752927117247,-3149.2708631,0.00030979,2]
[373283832,1752927117256,-332.14336286,0.00031,5]
[373283833,1752927117266,-900.0,0.00031,32]
[373283834,1752927117279,-3785.49728381,0.00031,5]
[373283835,1752927117289,-488.0,0.00031,120]
[373283836,1752927117299,-500.0,0.00031,90]
[373283837,1752927117308,-506629.68234821,0.00031,60]
[373283838,1752927117545,-11875.04474213,0.00031,60]
[373283839,1752927117557,-3936.83297878,0.00031,60]
[373283840,1752927117569,-2262.2468406,0.00031,60]
[373283841,1752927117580,-779.31317074,0.00031,60]
[373283842,1752927117593,-6260.4636759,0.00031,60]
[373283843,1752927117605,-1580.37195999,0.00031,60]
[373283844,1752927117616,-1906.54375468,0.00031,60]
[373283845,1752927117628,-2491.85400418,0.00031,60]
[373283846,1752927117646,-519.08,0.00021369,2]
[373283847,1752927117655,-4610.62,0.00031,60]
[373283848,1752927117669,-292.35,0.00031,60]
[373283849,1752927117695,-480.0,0.00019726,2]
[373283850,1752927117705,-569.84,0.00020383,2]
[373283851,1752927117716,-21970.29567725,0.00031,60]
[373283852,1752927117727,-397.86000031,0.00031,60]